[Event "Reykjavik Open 2025"]
[Site "Reykjavik, Iceland"]
[Date "2025.04.09"]
[Round "1.12"]
[White "Arruebarrena Rodriguez, Rafael"]
[Black "Adhiban, B.."]
[Result "0-1"]
[ECO "B60"]
[WhiteElo "2129"]
[BlackElo "2554"]
[PlyCount "102"]
[EventDate "2025.??.??"]
[TimeControl "90+30"]
[WhiteClock "0:13:23"]
[BlackClock "0:26:57"]

1. e4 {[%emt 0:00:00]} c5 {[%emt 0:00:00]} 2. Nf3 {[%emt 0:00:00]} d6 {[%emt 0:
00:00]} 3. d4 {[%emt 0:00:00]} cxd4 {[%emt 0:00:00]} 4. Nxd4 {[%emt 0:00:00]}
Nf6 {[%emt 0:00:00]} 5. Nc3 {[%emt 0:00:00]} Nc6 {[%emt 0:00:00]} 6. Bg5 {
[%emt 0:00:00]} Bd7 {[%emt 0:00:00]} 7. Bxf6 {[%emt 0:00:00]} gxf6 {[%emt 0:00:
00]} 8. Nf5 {[%emt 0:00:00]} Qa5 {[%emt 0:00:00]} 9. Bb5 {[%emt 0:00:00]} a6 {
[%emt 0:00:00]} 10. Bxc6 {[%emt 0:00:00]} bxc6 {[%emt 0:00:00]} 11. Qd3 {
[%emt 0:00:00]} d5 {[%emt 0:00:00]} 12. exd5 {[%emt 0:00:00]} cxd5 {[%emt 0:00:
00]} 13. O-O {[%emt 0:00:00]} e6 {[%emt 0:00:00]} 14. Qd4 {[%emt 0:00:00]} Rg8
{[%emt 0:00:00]} 15. Qxf6 {[%emt 0:00:00]} Qd8 {[%emt 0:00:00]} 16. Qxd8+ {
[%emt 0:00:00]} Kxd8 {[%emt 0:00:00]} 17. Nd4 {[%emt 0:00:00]} Rb8 {[%emt 0:00:
00]} 18. Rab1 {[%emt 0:00:00]} Kc7 {[%emt 0:00:00]} 19. Rfd1 {[%emt 0:00:00]}
Bg7 {[%emt 0:00:00]} 20. Nce2 {[%emt 0:00:00]} Rgc8 {[%emt 0:00:00]} 21. c3 {
[%emt 0:00:00]} Kd6 {[%emt 0:00:00]} 22. f4 {[%emt 0:00:00]} h5 {[%emt 0:00:00]
} 23. Kf2 {[%emt 0:00:00]} a5 {[%emt 0:00:00]} 24. b3 {[%emt 0:00:00]} Ke7 {
[%emt 0:00:00]} 25. Rbc1 {[%emt 0:00:00]} Rc5 {[%emt 0:00:00]} 26. Rd3 {
[%emt 0:00:21]} f6 {[%emt 0:00:00]} 27. Rg3 {[%emt 0:07:12]} Bh8 {[%emt 0:00:
00]} 28. Re1 {[%emt 0:01:04]} e5 {[%emt 0:00:00]} 29. Nf3 {[%emt 0:03:26]} Be6
{[%emt 0:02:24]} 30. fxe5 {[%emt 0:00:58]} fxe5 {[%emt 0:00:02]} 31. Rg5 {
[%emt 0:00:34]} Rf8 {[%emt 0:01:35]} 32. Kg1 {[%emt 0:00:37]} e4 {[%emt 0:01:
09]} 33. Nh4 {[%emt 0:01:50]} Kd6 {[%emt 0:00:34]} 34. Ng6 {[%emt 0:00:46]} Rg8
{[%emt 0:00:53]} 35. Rxh5 {[%emt 0:00:44]} Bxc3 {[%emt 0:00:40]} 36. Nxc3 {
[%emt 0:00:33]} Rxg6 {[%emt 0:01:09]} 37. Ne2 {[%emt 0:01:06]} Bg4 {[%emt 0:02:
24]} 38. Rh4 {[%emt 0:00:37]} Bxe2 {[%emt 0:00:54]} 39. Rxe2 {[%emt 0:00:06]}
Rc1+ {[%emt 0:06:07]} 40. Kf2 {[%emt 0:00:02]} Rf6+ {[%emt 0:00:35]} 41. Ke3 {
[%emt 0:00:00]} Kc5 {[%emt 0:00:00]} 42. Rh8 {[%emt 0:00:00]} Rc3+ {[%emt 0:00:
00]} 43. Kd2 {[%emt 0:00:00]} Rd3+ {[%emt 0:00:00]} 44. Kc2 {[%emt 0:00:00]}
Kd4 {[%emt 0:00:00]} 45. Rh4 {[%emt 0:00:00]} Rf1 {[%emt 0:00:00]} 46. g3 {
[%emt 0:00:00]} Rc3+ {[%emt 0:00:00]} 47. Kb2 {[%emt 0:00:00]} Kd3 {[%emt 0:00:
00]} 48. Rg2 {[%emt 0:00:00]} e3 {[%emt 0:00:00]} 49. Rf4 {[%emt 0:00:00]} Rxf4
{[%emt 0:00:00]} 50. gxf4 {[%emt 0:00:00]} d4 {[%emt 0:00:00]} 51. f5 {[%emt 0:
00:00]} e2 {[%emt 0:00:00]} 0-1

[Event "Reykjavik Open 2025"]
[Site "Reykjavik, Iceland"]
[Date "2025.04.09"]
[Round "1.18"]
[White "Jonsson, Gauti Pall"]
[Black "Cornette, Matthieu"]
[Result "1/2-1/2"]
[ECO "B30"]
[WhiteElo "2122"]
[BlackElo "2528"]
[PlyCount "196"]
[EventDate "2025.??.??"]
[TimeControl "90+30"]
[WhiteClock "0:23:28"]
[BlackClock "0:20:25"]

1. e4 {[%emt 0:00:00]} c5 {[%emt 0:00:00]} 2. Nf3 {[%emt 0:00:00]} Nc6 {
[%emt 0:00:00]} 3. Bc4 {[%emt 0:00:00]} Nf6 {[%emt 0:00:00]} 4. Qe2 {[%emt 0:
00:00]} d5 {[%emt 0:00:00]} 5. exd5 {[%emt 0:00:00]} Nxd5 {[%emt 0:00:00]} 6.
O-O {[%emt 0:00:00]} Nb6 {[%emt 0:00:00]} 7. Bb5 {[%emt 0:00:00]} Bd7 {[%emt 0:
00:00]} 8. a4 {[%emt 0:00:00]} a6 {[%emt 0:00:00]} 9. Bxc6 {[%emt 0:00:00]}
Bxc6 {[%emt 0:00:00]} 10. Ne5 {[%emt 0:00:00]} Qd5 {[%emt 0:00:00]} 11. Nxc6 {
[%emt 0:00:00]} Qxc6 {[%emt 0:00:00]} 12. Nc3 {[%emt 0:00:00]} e6 {[%emt 0:00:
00]} 13. d3 {[%emt 0:00:00]} Be7 {[%emt 0:00:00]} 14. a5 {[%emt 0:00:00]} Nc8 {
[%emt 0:00:00]} 15. Qg4 {[%emt 0:00:00]} Kf8 {[%emt 0:00:00]} 16. Bg5 {[%emt 0:
00:00]} f6 {[%emt 0:00:00]} 17. Bd2 {[%emt 0:00:00]} Kf7 {[%emt 0:00:00]} 18.
Rfe1 {[%emt 0:00:00]} h5 {[%emt 0:00:00]} 19. Qe2 {[%emt 0:00:00]} Na7 {
[%emt 0:00:00]} 20. Ra4 {[%emt 0:00:00]} Rae8 {[%emt 0:00:00]} 21. Rh4 {
[%emt 0:00:00]} g6 {[%emt 0:00:00]} 22. Re4 {[%emt 0:00:00]} Bd8 {[%emt 0:00:
00]} 23. Nd1 {[%emt 0:00:00]} Nb5 {[%emt 0:00:00]} 24. Ne3 {[%emt 0:00:00]} h4
{[%emt 0:00:00]} 25. h3 {[%emt 0:00:00]} Nd4 {[%emt 0:00:00]} 26. Qd1 {[%emt 0:
00:00]} Kg7 {[%emt 0:00:00]} 27. c3 {[%emt 0:00:00]} Nb5 {[%emt 0:00:00]} 28.
Nc4 {[%emt 0:00:00]} Bc7 {[%emt 0:00:00]} 29. Qe2 {[%emt 0:00:00]} Kf7 {
[%emt 0:00:00]} 30. Bf4 {[%emt 0:00:57]} e5 {[%emt 0:00:28]} 31. Bh2 {[%emt 0:
03:00]} g5 {[%emt 0:01:22]} 32. Bxe5 {[%emt 0:03:25]} fxe5 {[%emt 0:03:14]} 33.
Nxe5+ {[%emt 0:01:44]} Bxe5 {[%emt 0:00:17]} 34. Rxe5 {[%emt 0:00:14]} Nc7 {
[%emt 0:03:03]} 35. Qg4 {[%emt 0:01:44]} Rxe5 {[%emt 0:01:06]} 36. Rxe5 {
[%emt 0:00:07]} Ne8 {[%emt 0:03:11]} 37. Qxg5 {[%emt 0:01:30]} Nf6 {[%emt 0:00:
13]} 38. Rxc5 {[%emt 0:01:29]} Rh5 {[%emt 0:04:07]} 39. Rxc6 {[%emt 0:01:06]}
Rxg5 {[%emt 0:00:01]} 40. Rc7+ {[%emt 0:00:13]} Kg6 {[%emt 0:00:09]} 41. b4 {
[%emt 0:01:08]} Nd5 {[%emt 0:00:00]} 42. Rxb7 {[%emt 0:00:00]} Nf4 {[%emt 0:00:
00]} 43. Rb6+ {[%emt 0:00:00]} Kf5 {[%emt 0:00:00]} 44. g3 {[%emt 0:00:00]}
hxg3 {[%emt 0:00:00]} 45. fxg3 {[%emt 0:00:00]} Rxg3+ {[%emt 0:00:00]} 46. Kf2
{[%emt 0:00:00]} Rxd3 {[%emt 0:00:00]} 47. Rxa6 {[%emt 0:00:00]} Rxc3 {[%emt 0:
00:00]} 48. Ke1 {[%emt 0:00:00]} Ke4 {[%emt 0:00:00]} 49. Kd2 {[%emt 0:00:00]}
Rd3+ {[%emt 0:00:00]} 50. Kc2 {[%emt 0:00:00]} Nd5 {[%emt 0:00:00]} 51. Rh6 {
[%emt 0:00:00]} Nxb4+ {[%emt 0:00:00]} 52. Kb2 {[%emt 0:00:00]} Kd5 {[%emt 0:
00:00]} 53. a6 {[%emt 0:00:00]} Kc4 {[%emt 0:00:00]} 54. Rh4+ {[%emt 0:00:00]}
Kb5 {[%emt 0:00:00]} 55. a7 {[%emt 0:00:00]} Rd2+ {[%emt 0:00:00]} 56. Kc3 {
[%emt 0:00:00]} Rd3+ {[%emt 0:00:00]} 57. Kb2 {[%emt 0:00:00]} Rd8 {[%emt 0:00:
00]} 58. Rh7 {[%emt 0:00:00]} Kb6 {[%emt 0:00:00]} 59. Kc3 {[%emt 0:00:00]} Nc6
{[%emt 0:00:00]} 60. h4 {[%emt 0:00:00]} Nxa7 {[%emt 0:00:00]} 61. h5 {[%emt 0:
00:00]} Nb5+ {[%emt 0:00:00]} 62. Kc2 {[%emt 0:00:00]} Kc5 {[%emt 0:00:00]} 63.
h6 {[%emt 0:00:00]} Nd4+ {[%emt 0:00:00]} 64. Kc3 {[%emt 0:00:00]} Nf5 {
[%emt 0:00:00]} 65. Rf7 {[%emt 0:00:00]} Nxh6 {[%emt 0:00:00]} 66. Rf6 {
[%emt 0:00:00]} Ng4 {[%emt 0:00:00]} 67. Rf5+ {[%emt 0:00:00]} Kc6 {[%emt 0:00:
00]} 68. Rg5 {[%emt 0:00:00]} Ne3 {[%emt 0:00:00]} 69. Rh5 {[%emt 0:00:00]}
Nd5+ {[%emt 0:00:42]} 70. Kc4 {[%emt 0:00:00]} Nb6+ {[%emt 0:00:04]} 71. Kc3 {
[%emt 0:00:00]} Ra8 {[%emt 0:00:23]} 72. Rh6+ {[%emt 0:00:00]} Kc5 {[%emt 0:00:
06]} 73. Kd3 {[%emt 0:00:00]} Nd5 {[%emt 0:00:09]} 74. Rh5 {[%emt 0:00:00]} Ra4
{[%emt 0:00:43]} 75. Rh8 {[%emt 0:00:00]} Rd4+ {[%emt 0:00:23]} 76. Ke2 {
[%emt 0:00:00]} Rf4 {[%emt 0:00:08]} 77. Ra8 {[%emt 0:00:00]} Re4+ {[%emt 0:00:
32]} 78. Kf3 {[%emt 0:00:00]} Re3+ {[%emt 0:00:03]} 79. Kg4 {[%emt 0:00:00]}
Kd4 {[%emt 0:00:06]} 80. Rd8 {[%emt 0:00:47]} Re7 {[%emt 0:00:43]} 81. Kf3 {
[%emt 0:01:07]} Re5 {[%emt 0:00:59]} 82. Ra8 {[%emt 0:01:03]} Rf5+ {[%emt 0:00:
16]} 83. Kg3 {[%emt 0:00:23]} Nc3 {[%emt 0:00:22]} 84. Rd8+ {[%emt 0:00:13]}
Ke3 {[%emt 0:00:07]} 85. Kg4 {[%emt 0:00:25]} Ra5 {[%emt 0:00:26]} 86. Rb8 {
[%emt 0:00:34]} Ne4 {[%emt 0:01:21]} 87. Rb3+ {[%emt 0:00:10]} Kd4 {[%emt 0:00:
03]} 88. Rb4+ {[%emt 0:00:18]} Ke5 {[%emt 0:00:04]} 89. Rb8 {[%emt 0:00:22]}
Ra3 {[%emt 0:02:14]} 90. Rb5+ {[%emt 0:00:22]} Ke6 {[%emt 0:00:27]} 91. Rb6+ {
[%emt 0:00:14]} Nd6 {[%emt 0:00:01]} 92. Rb8 {[%emt 0:00:58]} Ke5 {[%emt 0:00:
21]} 93. Rh8 {[%emt 0:00:48]} Ne4 {[%emt 0:00:35]} 94. Re8+ {[%emt 0:00:12]}
Kd4 {[%emt 0:00:05]} 95. Kf4 {[%emt 0:00:45]} Nf6 {[%emt 0:00:14]} 96. Rd8+ {
[%emt 0:00:54]} Nd5+ {[%emt 0:00:01]} 97. Kg4 {[%emt 0:00:19]} Ra7 {[%emt 0:00:
03]} 98. Kf3 {[%emt 0:00:31]} Ke5 {[%emt 0:01:13]} 1/2-1/2

[Event "Reykjavik Open 2025"]
[Site "Reykjavik, Iceland"]
[Date "2025.04.09"]
[Round "1.19"]
[White "Sivuk, Vitaly"]
[Black "Burgalat, Eliot"]
[Result "0-1"]
[ECO "A20"]
[WhiteElo "2505"]
[BlackElo "2119"]
[PlyCount "92"]
[EventDate "2025.??.??"]
[TimeControl "90+30"]
[WhiteClock "0:01:32"]
[BlackClock "0:16:19"]

1. c4 {[%emt 0:00:00]} e5 {[%emt 0:00:00]} 2. d3 {[%emt 0:00:00]} Nc6 {[%emt 0:
00:00]} 3. Nf3 {[%emt 0:00:00]} f5 {[%emt 0:00:00]} 4. a3 {[%emt 0:00:00]} a5 {
[%emt 0:00:00]} 5. Nc3 {[%emt 0:00:00]} Nf6 {[%emt 0:00:00]} 6. g3 {[%emt 0:00:
00]} Be7 {[%emt 0:00:00]} 7. Bg2 {[%emt 0:00:00]} O-O {[%emt 0:00:00]} 8. O-O {
[%emt 0:00:00]} d6 {[%emt 0:00:00]} 9. Rb1 {[%emt 0:00:00]} h6 {[%emt 0:00:00]}
10. b4 {[%emt 0:00:00]} axb4 {[%emt 0:00:00]} 11. axb4 {[%emt 0:00:00]} Qe8 {
[%emt 0:00:00]} 12. b5 {[%emt 0:00:00]} Nd8 {[%emt 0:00:00]} 13. c5 {[%emt 0:
00:00]} Be6 {[%emt 0:00:00]} 14. Bb2 {[%emt 0:00:00]} Nd5 {[%emt 0:00:00]} 15.
Nd2 {[%emt 0:00:00]} Qf7 {[%emt 0:00:00]} 16. Ra1 {[%emt 0:00:00]} Rxa1 {
[%emt 0:00:00]} 17. Qxa1 {[%emt 0:00:00]} Bg5 {[%emt 0:00:00]} 18. Nf3 {
[%emt 0:00:00]} Nxc3 {[%emt 0:00:00]} 19. Bxc3 {[%emt 0:00:00]} Bf6 {[%emt 0:
00:00]} 20. b6 {[%emt 0:00:00]} Nc6 {[%emt 0:01:34]} 21. bxc7 {[%emt 0:00:00]}
Qxc7 {[%emt 0:00:02]} 22. cxd6 {[%emt 0:00:00]} Qxd6 {[%emt 0:00:02]} 23. Rb1 {
[%emt 0:00:00]} e4 {[%emt 0:02:32]} 24. Ne1 {[%emt 0:00:00]} Nd4 {[%emt 0:03:
45]} 25. Bxd4 {[%emt 0:00:00]} Bxd4 {[%emt 0:00:01]} 26. Qa4 {[%emt 0:00:00]}
f4 {[%emt 0:03:23]} 27. gxf4 {[%emt 0:00:00]} Bxf2+ {[%emt 0:00:31]} 28. Kxf2 {
[%emt 0:00:00]} Qxf4+ {[%emt 0:00:05]} 29. Kg1 {[%emt 0:00:00]} Qf2+ {[%emt 0:
01:14]} 30. Kh1 {[%emt 0:00:00]} Qxe2 {[%emt 0:01:40]} 31. Nc2 {[%emt 0:00:00]}
exd3 {[%emt 0:00:58]} 32. Nd4 {[%emt 0:00:00]} Qg4 {[%emt 0:00:02]} 33. Bf3 {
[%emt 0:12:23]} Rxf3 {[%emt 0:01:12]} 34. Qe8+ {[%emt 0:00:21]} Kh7 {[%emt 0:
00:01]} 35. Nxe6 {[%emt 0:00:19]} Qf5 {[%emt 0:00:26]} 36. Rg1 {[%emt 0:04:27]}
Rf1 {[%emt 0:00:29]} 37. Ng5+ {[%emt 0:00:25]} hxg5 {[%emt 0:00:07]} 38. Qh5+ {
[%emt 0:00:04]} Kg8 {[%emt 0:00:05]} 39. Qe8+ {[%emt 0:00:02]} Kh7 {[%emt 0:01:
01]} 40. Qh5+ {[%emt 0:00:05]} Kg8 {[%emt 0:00:04]} 41. Qe8+ {[%emt 0:00:03]}
Qf8 {[%emt 0:00:00]} 42. Qe6+ {[%emt 0:00:00]} Rf7 {[%emt 0:00:00]} 43. Rxg5 {
[%emt 0:00:00]} d2 {[%emt 0:00:00]} 44. Rd5 {[%emt 0:00:00]} Qa8 {[%emt 0:00:
00]} 45. h3 {[%emt 0:04:38]} Qa1+ {[%emt 0:00:00]} 46. Kh2 {[%emt 0:00:11]}
d1=Q {[%emt 0:00:00]} 0-1

[Event "Reykjavik Open 2025"]
[Site "Reykjavik, Iceland"]
[Date "2025.04.09"]
[Round "1.21"]
[White "Zierk, Steven"]
[Black "Hartung, Thomas"]
[Result "1-0"]
[ECO "A05"]
[WhiteElo "2501"]
[BlackElo "2118"]
[PlyCount "101"]
[EventDate "2025.??.??"]
[TimeControl "90+30"]
[WhiteClock "0:06:52"]
[BlackClock "0:08:23"]

1. Nf3 {[%emt 0:00:00]} d5 {[%emt 0:00:00]} 2. g3 {[%emt 0:00:00]} Nf6 {
[%emt 0:00:00]} 3. Bg2 {[%emt 0:00:00]} g6 {[%emt 0:00:00]} 4. c4 {[%emt 0:00:
00]} Bg7 {[%emt 0:00:00]} 5. cxd5 {[%emt 0:00:00]} Nxd5 {[%emt 0:00:00]} 6. Nc3
{[%emt 0:00:00]} O-O {[%emt 0:00:00]} 7. O-O {[%emt 0:00:00]} c6 {[%emt 0:00:
00]} 8. d4 {[%emt 0:00:00]} Nd7 {[%emt 0:00:00]} 9. e4 {[%emt 0:00:00]} Nxc3 {
[%emt 0:00:00]} 10. bxc3 {[%emt 0:00:00]} Qa5 {[%emt 0:00:00]} 11. Qb3 {
[%emt 0:00:00]} Nb6 {[%emt 0:00:00]} 12. Bd2 {[%emt 0:00:00]} Be6 {[%emt 0:00:
00]} 13. c4 {[%emt 0:00:00]} Qa6 {[%emt 0:00:00]} 14. d5 {[%emt 0:00:00]} cxd5
{[%emt 0:00:00]} 15. cxd5 {[%emt 0:00:00]} Bd7 {[%emt 0:00:00]} 16. Bc3 {
[%emt 0:00:00]} Ba4 {[%emt 0:00:00]} 17. Qb4 {[%emt 0:00:00]} Qc4 {[%emt 0:00:
00]} 18. Rac1 {[%emt 0:00:00]} Rfc8 {[%emt 0:00:00]} 19. Bd2 {[%emt 0:00:00]}
Qxb4 {[%emt 0:00:00]} 20. Bxb4 {[%emt 0:00:00]} Kf8 {[%emt 0:00:00]} 21. Bh3 {
[%emt 0:00:00]} Bd7 {[%emt 0:00:00]} 22. Bxd7 {[%emt 0:00:00]} Nxd7 {[%emt 0:
00:00]} 23. Kg2 {[%emt 0:00:00]} Ke8 {[%emt 0:00:00]} 24. Rfd1 {[%emt 0:00:00]}
Ne5 {[%emt 0:00:00]} 25. Bc3 {[%emt 0:00:00]} Nxf3 {[%emt 0:00:00]} 26. Bxg7 {
[%emt 0:00:00]} Ng5 {[%emt 0:00:00]} 27. f3 {[%emt 0:00:00]} f6 {[%emt 0:03:49]
} 28. Bh6 {[%emt 0:00:00]} Nf7 {[%emt 0:00:03]} 29. Be3 {[%emt 0:00:00]} b6 {
[%emt 0:01:02]} 30. f4 {[%emt 0:00:28]} Kd7 {[%emt 0:00:26]} 31. Kf3 {[%emt 0:
05:48]} b5 {[%emt 0:04:20]} 32. Bd4 {[%emt 0:05:53]} Nd6 {[%emt 0:04:27]} 33.
e5 {[%emt 0:02:22]} fxe5 {[%emt 0:00:01]} 34. fxe5 {[%emt 0:00:12]} Rf8+ {
[%emt 0:00:12]} 35. Ke2 {[%emt 0:00:39]} Nc4 {[%emt 0:00:17]} 36. Rf1 {[%emt 0:
00:51]} a6 {[%emt 0:00:12]} 37. a4 {[%emt 0:01:29]} Rxf1 {[%emt 0:02:12]} 38.
Rxf1 {[%emt 0:00:05]} bxa4 {[%emt 0:01:06]} 39. Kd3 {[%emt 0:00:30]} Rc8 {
[%emt 0:01:07]} 40. Rb1 {[%emt 0:00:59]} a3 {[%emt 0:01:43]} 41. Rb4 {[%emt 0:
00:00]} Nb2+ {[%emt 0:00:00]} 42. Bxb2 {[%emt 0:00:00]} axb2 {[%emt 0:00:00]}
43. Rxb2 {[%emt 0:00:00]} Rc1 {[%emt 0:00:00]} 44. Rb7+ {[%emt 0:00:00]} Kd8 {
[%emt 0:00:00]} 45. e6 {[%emt 0:00:00]} Rc7 {[%emt 0:00:00]} 46. Rb6 {[%emt 0:
00:00]} Ra7 {[%emt 0:00:00]} 47. Rb8+ {[%emt 0:00:00]} Kc7 {[%emt 0:00:00]} 48.
Re8 {[%emt 0:00:00]} Kb6 {[%emt 0:00:00]} 49. d6 {[%emt 0:00:00]} exd6 {
[%emt 0:00:00]} 50. e7 {[%emt 0:00:00]} Rb7 {[%emt 0:00:00]} 51. Kd4 {[%emt 0:
00:52]} 1-0

[Event "Reykjavik Open 2025"]
[Site "Reykjavik, Iceland"]
[Date "2025.04.09"]
[Round "1.29"]
[White "Clyde, Jordan"]
[Black "Larkin, Vladyslav"]
[Result "1/2-1/2"]
[ECO "A05"]
[WhiteElo "2095"]
[BlackElo "2449"]
[PlyCount "61"]
[EventDate "2025.??.??"]
[TimeControl "90+30"]
[WhiteClock "0:06:46"]
[BlackClock "0:22:04"]

1. Nf3 {[%emt 0:00:00]} Nf6 {[%emt 0:00:00]} 2. d3 {[%emt 0:00:00]} d5 {
[%emt 0:00:00]} 3. Bg5 {[%emt 0:00:00]} e6 {[%emt 0:00:00]} 4. c3 {[%emt 0:00:
00]} Be7 {[%emt 0:00:00]} 5. e3 {[%emt 0:00:00]} h6 {[%emt 0:00:00]} 6. Bh4 {
[%emt 0:00:00]} b6 {[%emt 0:00:00]} 7. Qa4+ {[%emt 0:00:00]} c6 {[%emt 0:00:00]
} 8. e4 {[%emt 0:00:00]} b5 {[%emt 0:00:00]} 9. Qc2 {[%emt 0:00:00]} a5 {
[%emt 0:00:00]} 10. Nbd2 {[%emt 0:00:00]} Ba6 {[%emt 0:00:00]} 11. d4 {[%emt 0:
00:00]} O-O {[%emt 0:00:00]} 12. Be2 {[%emt 0:00:00]} b4 {[%emt 0:00:00]} 13.
c4 {[%emt 0:00:00]} c5 {[%emt 0:00:00]} 14. dxc5 {[%emt 0:00:00]} Nc6 {[%emt 0:
00:00]} 15. O-O {[%emt 0:00:00]} d4 {[%emt 0:00:00]} 16. e5 {[%emt 0:00:00]}
Nd7 {[%emt 0:00:00]} 17. Bxe7 {[%emt 0:00:00]} Qxe7 {[%emt 0:00:00]} 18. Nb3 {
[%emt 0:00:00]} a4 {[%emt 0:00:00]} 19. Nbxd4 {[%emt 0:00:00]} Nxd4 {[%emt 0:
00:00]} 20. Nxd4 {[%emt 0:00:00]} Qxc5 {[%emt 0:00:00]} 21. Nf3 {[%emt 0:00:00]
} Bb7 {[%emt 0:00:00]} 22. Rfe1 {[%emt 0:00:00]} a3 {[%emt 0:00:00]} 23. Rad1 {
[%emt 0:00:00]} Bc6 {[%emt 0:00:00]} 24. b3 {[%emt 0:00:00]} Rad8 {[%emt 0:00:
00]} 25. Qd2 {[%emt 0:02:42]} Bxf3 {[%emt 0:00:00]} 26. Bxf3 {[%emt 0:00:08]}
Nxe5 {[%emt 0:00:00]} 27. Qxd8 {[%emt 0:03:13]} Rxd8 {[%emt 0:00:00]} 28. Rxd8+
{[%emt 0:00:05]} Kh7 {[%emt 0:00:00]} 29. Be2 {[%emt 0:03:17]} Kg6 {[%emt 0:00:
00]} 30. Red1 {[%emt 0:00:21]} Kf6 {[%emt 0:00:00]} 31. Rb8 {[%emt 0:00:28]}
1/2-1/2

[Event "Reykjavik Open 2025"]
[Site "Reykjavik, Iceland"]
[Date "2025.04.09"]
[Round "1.41"]
[White "Schellenpfeil, Wolfgang"]
[Black "Niermann, Tristan"]
[Result "0-1"]
[ECO "A70"]
[WhiteElo "2079"]
[BlackElo "2427"]
[PlyCount "64"]
[EventDate "2025.??.??"]
[TimeControl "90+30"]
[WhiteClock "0:11:25"]
[BlackClock "1:17:12"]

1. d4 {[%emt 0:00:00]} Nf6 {[%emt 0:00:00]} 2. c4 {[%emt 0:00:00]} e6 {[%emt 0:
00:00]} 3. Nf3 {[%emt 0:00:00]} c5 {[%emt 0:00:00]} 4. d5 {[%emt 0:00:00]} exd5
{[%emt 0:00:00]} 5. cxd5 {[%emt 0:00:00]} d6 {[%emt 0:00:00]} 6. Nc3 {[%emt 0:
00:00]} g6 {[%emt 0:00:00]} 7. e4 {[%emt 0:00:00]} Bg7 {[%emt 0:00:00]} 8. Be2
{[%emt 0:00:00]} Bg4 {[%emt 0:00:00]} 9. O-O {[%emt 0:00:00]} O-O {[%emt 0:00:
00]} 10. Nd2 {[%emt 0:00:00]} Bxe2 {[%emt 0:00:00]} 11. Qxe2 {[%emt 0:00:00]}
Re8 {[%emt 0:00:00]} 12. Qd3 {[%emt 0:00:00]} Na6 {[%emt 0:00:00]} 13. a3 {
[%emt 0:00:00]} Nc7 {[%emt 0:00:00]} 14. f4 {[%emt 0:00:00]} b5 {[%emt 0:00:00]
} 15. Qf3 {[%emt 0:00:00]} a5 {[%emt 0:00:00]} 16. g4 {[%emt 0:00:00]} c4 {
[%emt 0:00:00]} 17. g5 {[%emt 0:00:00]} Nd7 {[%emt 0:00:00]} 18. h4 {[%emt 0:
00:00]} Rc8 {[%emt 0:00:00]} 19. Kg2 {[%emt 0:00:00]} b4 {[%emt 0:00:00]} 20.
axb4 {[%emt 0:00:00]} axb4 {[%emt 0:00:00]} 21. Nd1 {[%emt 0:00:00]} c3 {
[%emt 0:00:00]} 22. Nc4 {[%emt 0:00:00]} Nb5 {[%emt 0:00:00]} 23. Na5 {[%emt 0:
00:00]} Nd4 {[%emt 0:00:00]} 24. Qf2 {[%emt 0:00:00]} Rxe4 {[%emt 0:00:00]} 25.
Be3 {[%emt 0:00:00]} c2 {[%emt 0:00:00]} 26. Bxd4 {[%emt 0:02:24]} Bxd4 {
[%emt 0:00:00]} 27. Qf3 {[%emt 0:00:20]} cxd1=Q {[%emt 0:00:00]} 28. Rfxd1 {
[%emt 0:00:30]} Rc2+ {[%emt 0:00:00]} 29. Kh1 {[%emt 0:00:47]} Re3 {[%emt 0:00:
00]} 30. Qg4 {[%emt 0:00:58]} f5 {[%emt 0:00:00]} 31. gxf6 {[%emt 0:00:28]}
Nxf6 {[%emt 0:00:00]} 32. Qg5 {[%emt 0:00:38]} Rh3# {[%emt 0:00:00]} 0-1

[Event "Reykjavik Open 2025"]
[Site "Reykjavik, Iceland"]
[Date "2025.04.10"]
[Round "2.1"]
[White "Lohia, Sohum"]
[Black "Maghsoodloo, Parham"]
[Result "0-1"]
[WhiteElo "2354"]
[WhiteTitle "FM"]
[WhiteFideId "5819369"]
[BlackElo "2684"]
[BlackTitle "GM"]
[BlackFideId "12539929"]
[TimeControl "90+30 +30 after 40 moves"]
[Variant "Standard"]
[ECO "B44"]
[Opening "Sicilian Defense: Taimanov Variation, Szén Variation"]
[StudyName "Round 2"]
1. e4 { [%clk 1:30:53] } 1... c5 { [%clk 1:30:53] } 2. Nf3 { [%clk 1:31:15] } 2... e6 { [%clk 1:31:10] } 3. d4 { [%clk 1:31:28] } 3... cxd4 { [%clk 1:31:33] } 4. Nxd4 { [%clk 1:31:49] } 4... Nc6 { [%clk 1:31:46] } 5. Nb5 { [%clk 1:29:54] } 5... d6 { [%clk 1:21:12] } 6. c4 { [%clk 1:30:01] } 6... Nf6 { [%clk 1:17:04] } 7. N1c3 { [%clk 1:30:08] } 7... a6 { [%clk 1:16:48] } 8. Nd4 { [%clk 1:30:15] } 8... Bd7 { [%clk 1:16:10] } 9. Be2 { [%clk 1:20:57] } 9... Rc8 { [%clk 1:13:41] } 10. Nxc6 { [%clk 1:10:36] } 10... Bxc6 { [%clk 1:14:04] } 11. Qd4 { [%clk 1:07:24] } 11... g6 { [%clk 1:07:44] } 12. O-O { [%clk 1:04:21] } 12... Bg7 { [%clk 1:08:10] } 13. Rd1 { [%clk 0:57:14] } 13... O-O { [%clk 1:07:12] } 14. Qe3 { [%clk 0:56:43] } 14... Qc7 { [%clk 0:57:20] } 15. Bd2 { [%clk 0:36:02] } 15... Qb8 { [%clk 0:35:03] } 16. a4 { [%clk 0:31:32] } 16... Rfd8 { [%clk 0:34:19] } 17. Qf4 { [%clk 0:25:59] } 17... h6 { [%clk 0:26:12] } 18. h4 { [%clk 0:21:25] } 18... Qc7 { [%clk 0:22:23] } 19. b4 { [%clk 0:16:12] } 19... Be8 { [%clk 0:13:41] } 20. Rac1 { [%clk 0:13:04] } 20... Qe7 { [%clk 0:09:51] } 21. Be3 { [%clk 0:09:09] } 21... d5 { [%clk 0:05:13] } 22. Bc5 { [%clk 0:06:59] } 22... Rxc5 { [%clk 0:03:56] } 23. bxc5 { [%clk 0:07:24] } 23... e5 { [%clk 0:01:05] } 24. Qf3 { [%clk 0:07:05] } 24... dxe4 { [%clk 0:00:59] } 25. Nxe4 { [%clk 0:07:03] } 25... Rxd1+ { [%clk 0:00:49] } 26. Bxd1 { [%clk 0:06:26] } 26... Nxe4 { [%clk 0:00:55] } 27. Qxe4 { [%clk 0:06:52] } 27... Bc6 { [%clk 0:01:22] } 28. Qg4 { [%clk 0:05:04] } 28... h5 { [%clk 0:01:50] } 29. Qc8+ { [%clk 0:01:47] } 29... Kh7 { [%clk 0:01:52] } 30. Qh3 { [%clk 0:00:41] } 30... e4 { [%clk 0:02:01] } 31. Bc2 { [%clk 0:00:34] } 31... Bd4 { [%clk 0:00:48] } 32. Re1 { [%clk 0:00:41] } 32... Qxc5 { [%clk 0:01:06] } 33. Qg3 { [%clk 0:00:50] } 33... f5 { [%clk 0:00:33] } 34. Qc7+ { [%clk 0:00:55] } 34... Bg7 { [%clk 0:00:42] } 35. Rd1 { [%clk 0:00:35] } 35... e3 { [%clk 0:01:10] } 36. fxe3 { [%clk 0:00:32] } 36... Qxe3+ { [%clk 0:01:35] } 37. Kf1 { [%clk 0:00:32] } 37... Qc3 { [%clk 0:01:28] } 38. Bd3 { [%clk 0:00:33] } 38... Bxa4 { [%clk 0:01:46] } 39. Be2 { [%clk 0:00:31] } 39... Bxd1 { [%clk 0:02:09] } 40. Bxd1 { [%clk 0:00:58] } 40... b5 { [%clk 0:01:56] } 41. c5 { [%clk 0:01:20] } 41... Qc1 { [%clk 0:01:11] } 42. Ke2 { [%clk 0:01:06] } 42... Qc4+ { [%clk 0:01:20] } 43. Kd2 { [%clk 0:29:52] } 43... Kh6 { [%clk 0:29:27] } 44. Be2 { [%clk 0:29:27] } 44... Bc3+ { [%clk 0:25:06] } 45. Kc2 { [%clk 0:29:05] } 45... Qb4 { [%clk 0:25:34] } 0-1